[Event "SixDays Budapest January-GM 2023"]
[Site "Budapest"]
[Date "2023.01.23"]
[Round "1.1"]
[White "Chen, Qi b"]
[Black "Pajeken, Jakob Leon"]
[Result "1-0"]
[ECO "C88"]
[WhiteElo "2484"]
[BlackElo "2449"]
[Annotator "TA"]
[PlyCount "119"]
[EventDate "2023.01.23"]
[EventType "tourn"]
[EventCountry "HUN"]
[SourceTitle "playchess.com"]
[Source "ChessBase"]
[SourceQuality "1"]
[TimeControl "5400+30"]

{[%evp 20,119,36,39,42,37,35,33,35,18,24,0,0,0,18,22,22,18,9,10,28,17,43,41,30,0,4,0,43,28,44,39,100,95,252,85,85,83,85,58,82,93,121,106,118,88,133,68,68,47,151,151,160,153,165,167,167,163,299,261,287,272,312,307,375,370,363,347,338,289,285,268,369,362,368,373,361,357,494,482,523,385,639,617,735,729,717,684,666,642,647,700,795,781,786,933,1152,1099,1739,1781,1935,1841]} 1. e4 {[%emt 0:00:06]} e5 {[%emt 0:00:03]} 2. Nf3 {[%emt 0:00:18]} Nc6 {[%emt 0:00:04]} 3. Bb5 {[%emt 0:00:27][%cal Bf1b5,Bb5a4,Ba4b3][%mdl 32]} a6 {[%emt 0:00:05]} 4. Ba4 {[%emt 0:00:05]} Be7 {[%emt 0:00:06]} 5. O-O {[%emt 0:00:08]} Nf6 {[%emt 0:00:06]} 6. Re1 {[%emt 0:00:09]} b5 {[%emt 0:00:07]} 7. Bb3 {[%emt 0:00:04]} O-O {[%emt 0:00:03]} 8. h3 {[%emt 0:01:05]} Bb7 {[%emt 0:00:34]} 9. d3 {[%emt 0:03:06]} Na5 {[%emt 0:00:25]} 10. Nxe5 {[%emt 0:06:16]} Nxb3 {[%emt 0:00:09]} 11. axb3 {[%emt 0:00:06]} d5 {[%emt 0:00:03] C88: Closed Ruy Lopez: Anti-Marshall Systems.} 12. exd5 {[%emt 0:01:10]} Qxd5 {[%emt 0:00:06][%csl Gb7][%cal Rd5g2] 12...Nxd5 is vanishing.} 13. Qf3 {[%emt 0:06:16]} Bd6 {[%emt 0:01:07] White is slightly better.} 14. Qxd5 {[%emt 0:01:25] 14.Kf1 injects fresh life into this line.} Nxd5 {[%emt 0:00:05] [#]} 15. Kf1 $146 {[%emt 0:06:19]} ({Predecessor:} 15. Bd2 Rfe8 16. Nf3 f6 17. Kf1 c5 18. c4 Nc7 19. Nc3 Bxf3 20. gxf3 Be5 21. f4 {1-0 Tsydypov,Z (2534)-Petrov,N (2537) RUS GP Top 28 Rapid 2022 (6)}) 15... Nb4 {[%emt 0:12:19]} 16. Na3 {[%emt 0:01:10]} Rfe8 {[%emt 0:02:51]} 17. Nf3 {[%emt 0:11:05]} Bxf3 {[%emt 0:01:00] This pair of bishops is nice.} 18. Rxe8+ {[%emt 0:04:27]} Rxe8 {[%emt 0:00:09]} 19. gxf3 {[%emt 0:00:03]} Nc6 {[%emt 0:06:44]} 20. f4 {[%emt 0:07:01]} (20. c3 $5 {[%cal Ra3c2]}) 20... Nd4 {[%emt 0:07:45]} 21. Be3 {[%emt 0:00:33]} Nf5 {[%emt 0:00:35]} 22. Bd2 {[%emt 0:02:31]} (22. Re1 $5) 22... Nd4 {[%emt 0:02:37]} 23. Be3 {[%emt 0:00:43]} Nf5 {[%emt 0:02:04]} 24. Re1 {[%emt 0:07:31]} Re6 {[%emt 0:05:29]} 25. c4 {[%emt 0:01:42]} c6 {[%emt 0:02:25] [#]} ({Black should play} 25... bxc4 $14 26. Nxc4 Bb4) 26. Nc2 $1 $16 {[%emt 0:01:44]} Rh6 $2 {[%emt 0:03:12] [#]} (26... Re8 $16 {is a better defense.}) 27. Nd4 $2 {[%emt 0:04:06]} (27. Ra1 $1 $18 {is the precise move to win.}) 27... Nxd4 {[%emt 0:04:00]} 28. Bxd4 {[%emt 0:00:04][%mdl 4096] Endgame Strongly threatening Re8+. KRB-KRB} Kf8 {[%emt 0:02:02] Prevents Re8+} 29. Kg2 {[%emt 0:05:27]} Bxf4 {[%emt 0:02:32]} 30. Ra1 {[%emt 0:00:20]} Ke8 {[%emt 0:02:23]} 31. Bxg7 {[%emt 0:04:17]} Rd6 {[%emt 0:01:20]} 32. Kf3 {[%emt 0:04:24]} Bg5 {[%emt 0:01:14]} 33. Re1+ {[%emt 0:00:06]} (33. Ke4 $16) 33... Kd7 {[%emt 0:01:10]} 34. Rd1 {[%emt 0:00:49]} f6 {[%emt 0:02:23] White stays focused until the end.} ({Better is} 34... Be7 $14) 35. Bf8 {[%emt 0:00:39]} Rd4 {[%emt 0:00:49]} 36. Bc5 {[%emt 0:00:53]} Rh4 {[%emt 0:01:23]} 37. Kg2 {[%emt 0:01:55]} a5 {[%emt 0:02:37]} 38. Bb6 {[%emt 0:01:19]} b4 {[%emt 0:05:44]} (38... Rh5 {was called for.} 39. Bxa5 Bf4) 39. Ra1 {[%emt 0:01:35]} Bf4 {[%emt 0:02:04]} 40. Rxa5 {[%emt 0:01:43]} Be5 {[%emt 0:00:27]} 41. Be3 {[%emt 0:01:50][%cal Oa5e5] aiming for Rxe5!} Kd6 {[%emt 0:01:02]} 42. Ra4 {[%emt 0:03:22]} f5 {[%emt 0:01:06]} 43. Rxb4 {[%emt 0:02:08] Black must now prevent c5+.} f4 {[%emt 0:00:39]} 44. c5+ {[%emt 0:00:32]} Kd5 {[%emt 0:00:29] Hoping for ...f3+.} 45. f3 {[%emt 0:00:19]} Bxb2 {[%emt 0:01:36]} 46. Bf2 {[%emt 0:00:14][%mdl 64] Deflection} ({Much less strong is} 46. Rxf4 Rxf4 47. Bxf4 Kxc5 48. Be3+ Kd6 $18) ({Not} 46. Bxf4 Be5 $18) 46... Rh5 {[%emt 0:02:08]} 47. Rxf4 {[%emt 0:00:04]} Be5 {[%emt 0:01:06]} 48. Rf8 {[%emt 0:01:34]} Rg5+ {[%emt 0:00:23]} 49. Kf1 {[%emt 0:00:06] f4 would be deadly.} Rh5 {[%emt 0:00:06]} 50. h4 {[%emt 0:00:25][%cal Od3d4] d4! is the strong threat.} Rh6 $2 {[%emt 0:00:44] [#]} (50... Ke6 51. d4 Bf6) 51. d4 $1 $18 {[%emt 0:00:45] White is clearly winning.} Bc7 {[%emt 0:00:42]} (51... Bh2 52. Kg2) 52. Rf7 {[%emt 0:00:28]} Bb8 {[%emt 0:00:47]} 53. Ke2 {[%emt 0:00:44]} Ke6 {[%emt 0:00:47]} 54. Rb7 {[%emt 0:00:03]} Bf4 {[%emt 0:00:05]} 55. Kd3 {[%emt 0:00:21]} Bc1 {[%emt 0:00:29]} 56. Rc7 {[%emt 0:00:31]} Kf5 {[%emt 0:00:13]} 57. b4 {[%emt 0:00:34]} Rf6 {[%emt 0:00:12]} 58. Bg3 {[%emt 0:00:48]} Kg6 {[%emt 0:00:50]} 59. Ke4 {[%emt 0:00:08]} Bd2 {[%emt 0:00:40]} 60. Be5 {[%emt 0:00:04] Weighted Error Value: White=0.14 (very precise) /Black=0.34} 1-0

[Event "SixDays Budapest January-GM 2023"]
[Site "Budapest"]
[Date "2023.01.23"]
[Round "1.2"]
[White "Nagy, Gabor"]
[Black "Berczes, David"]
[Result "1/2-1/2"]
[ECO "A05"]
[WhiteElo "2499"]
[BlackElo "2436"]
[Annotator "TA"]
[PlyCount "36"]
[EventDate "2023.01.23"]
[EventType "tourn"]
[EventCountry "HUN"]
[SourceTitle "playchess.com"]
[Source "ChessBase"]
[SourceQuality "1"]
[TimeControl "5400+30"]

{[%evp 16,17,2,0]} 1. Nf3 {[%emt 0:00:03]} Nf6 {[%emt 0:00:15]} 2. g3 {[%emt 0:00:09]} d5 {[%emt 0:00:12]} 3. Bg2 {[%emt 0:00:07]} c6 {[%emt 0:00:36]} 4. b3 {[%emt 0:00:11]} Bg4 {[%emt 0:00:22]} 5. Bb2 {[%emt 0:00:09]} Nbd7 {[%emt 0:00:12]} 6. O-O {[%emt 0:00:09]} e6 {[%emt 0:00:06]} 7. d3 {[%emt 0:00:05]} Bd6 {[%emt 0:00:12]} 8. Nbd2 {[%emt 0:00:07]} O-O {[%emt 0:00:08]} 9. c4 {[%emt 0:00:05] [#]} {Predecessor:} Re8 $146 {A12: English Opening: 1...c6 with b3 by White.} 10. a3 a5 11. Qc2 e5 12. h3 Bh5 13. Nh4 Rc8 14. Rfe1 b5 15. e3 Bb8 16. Rac1 Nb6 17. g4 Bg6 18. Nxg6 hxg6 {0-1 Sviridov,V (2561)-Nepomniachtchi,I (2773) Titled Tuesday intern op 08th Feb Late blitz 2022 (10)} 1/2-1/2

[Event "SixDays Budapest January-GM 2023"]
[Site "Budapest"]
[Date "2023.01.23"]
[Round "1.3"]
[White "Hacker, Jonas"]
[Black "Olsen, Filip Boe"]
[Result "1/2-1/2"]
[ECO "A15"]
[WhiteElo "2446"]
[BlackElo "2428"]
[Annotator "TA"]
[PlyCount "58"]
[EventDate "2023.01.23"]
[EventType "tourn"]
[EventCountry "HUN"]
[SourceTitle "playchess.com"]
[Source "ChessBase"]
[SourceQuality "1"]
[TimeControl "5400+30"]

{[%evp 9,58,0,8,2,8,8,0,0,0,-12,-4,-8,59,59,64,66,67,62,53,58,60,60,60,53,63,68,82,43,71,52,89,70,61,59,73,47,62,66,67,63,46,32,41,35,78,0,40,0,58,0,50]} 1. c4 {[%emt 0:00:09]} Nf6 {[%emt 0:00:26]} 2. Nf3 {[%emt 0:00:20]} e6 {[%emt 0:00:21]} 3. Nc3 {[%emt 0:00:19]} d5 {[%emt 0:00:14]} 4. e3 {[%emt 0:00:16]} b6 {[%emt 0:00:15]} 5. b3 {[%emt 0:00:31]} Bb7 {[%emt 0:00:13]} 6. Bb2 {[%emt 0:00:32] A17: English Opening: 1...Nf6 with ...Bb4.} Nbd7 {[%emt 0:00:20]} 7. Rc1 {[%emt 0:01:16]} a6 {[%emt 0:00:40]} 8. cxd5 {[%emt 0:00:23]} exd5 {[%emt 0:00:15]} 9. Ne2 {[%emt 0:01:15]} Bd6 {[%emt 0:03:38]} 10. Ned4 {[%emt 0:00:58] [#]} g6 $146 {[%emt 0:05:53] Repels Nf5} (10... c5 $11 11. Nf5 Bf8) ({Predecessor:} 10... c5 11. Nf5 Bf8 12. d4 g6 13. Ng3 Bg7 14. Bd3 O-O 15. O-O Re8 16. Qe2 Ne4 {1-0 Adhiban,B (2611)-Ajay,K (2430) Sitges Sunway op 9th 2022 (3)}) 11. Nc6 $14 {[%emt 0:02:25]} Bxc6 {[%emt 0:00:54]} 12. Rxc6 {[%emt 0:00:10]} O-O {[%emt 0:05:05]} 13. Be2 {[%emt 0:06:29] White is more active.} Re8 {[%emt 0:05:24]} 14. O-O {[%emt 0:13:40]} Nb8 {[%emt 0:17:48]} 15. Rc1 {[%emt 0:04:33]} Nbd7 {[%emt 0:01:42]} 16. Qc2 {[%emt 0:04:18]} c5 {[%emt 0:06:47]} 17. d4 {[%emt 0:01:39]} Qe7 {[%emt 0:03:49]} 18. Rfe1 {[%emt 0:04:19]} Ne4 {[%emt 0:05:08]} 19. Bd3 {[%emt 0:02:50]} Ra7 {[%emt 0:08:02]} 20. Qe2 {[%emt 0:05:25]} a5 {[%emt 0:02:27]} 21. Bb5 {[%emt 0:02:09]} Rd8 {[%emt 0:06:49]} 22. h3 {[%emt 0:03:38]} Rc7 {[%emt 0:04:19]} 23. Red1 {[%emt 0:04:13]} Ndf6 {[%emt 0:01:18]} 24. dxc5 {[%emt 0:04:03]} bxc5 {[%emt 0:01:32]} 25. Rc2 {[%emt 0:02:19]} h5 {[%emt 0:02:36]} 26. Nd2 {[%emt 0:04:36]} Ng5 {[%emt 0:05:49]} 27. Nf3 {[%emt 0:02:27]} Nge4 {[%emt 0:00:41]} 28. Nd2 {[%emt 0:03:07]} Ng5 {[%emt 0:00:17]} 29. Nf3 {[%emt 0:03:00]} Nge4 {Weighted Error Value: White=0.15 (very precise) /Black=0.11 (very precise)} 1/2-1/2

[Event "SixDays Budapest January-GM 2023"]
[Site "Budapest"]
[Date "2023.01.23"]
[Round "1.4"]
[White "Ghazarian, Kirk"]
[Black "Can, Isik"]
[Result "1-0"]
[ECO "D85"]
[WhiteElo "2466"]
[BlackElo "2488"]
[Annotator "TA"]
[PlyCount "129"]
[EventDate "2023.01.23"]
[EventType "tourn"]
[EventCountry "HUN"]
[SourceTitle "playchess.com"]
[Source "ChessBase"]
[SourceQuality "1"]
[TimeControl "5400+30"]

{[%evp 25,129,0,0,5,5,-12,0,0,0,0,0,0,16,20,14,30,57,50,58,64,66,68,67,47,53,54,60,57,60,58,53,53,137,145,143,140,140,147,150,129,164,145,161,145,150,162,150,150,142,150,183,172,167,167,173,173,231,222,216,217,245,236,245,238,336,336,334,333,431,431,395,411,580,572,699,709,673,456,618,598,574,595,603,603,570,486,486,486,486,413,413,413,486,485,485,406,1603,1272,5414,5414,5440,5414,5414,5414,1173,1010]} 1. d4 {[%emt 0:00:02]} Nf6 {[%emt 0:04:13]} 2. c4 {[%emt 0:00:08]} g6 {[%emt 0:00:04]} 3. Nc3 {[%emt 0:00:09]} d5 {[%emt 0:00:04]} 4. cxd5 {[%emt 0:00:10]} Nxd5 {[%emt 0:00:05]} 5. e4 {[%emt 0:00:11]} Nxc3 {[%emt 0:00:34]} 6. bxc3 {[%emt 0:00:08]} Bg7 {[%emt 0:01:41]} 7. Nf3 {[%emt 0:00:10]} c5 {[%emt 0:00:21]} 8. Be3 {[%emt 0:00:38]} Qa5 {[%emt 0:00:58]} 9. Qd2 {[%emt 0:00:19]} Nc6 {[%emt 0:00:05]} 10. Rb1 {[%emt 0:00:34]} a6 {[%emt 0:00:26]} 11. Rc1 {[%emt 0:00:21]} cxd4 {[%emt 0:00:06]} 12. cxd4 {[%emt 0:00:10]} Qxd2+ {[%emt 0:00:08]} 13. Kxd2 {[%emt 0:00:14]} e6 {[%emt 0:00:18]} 14. Bd3 {[%emt 0:01:30] D85: Exchange Grünfeld: Unusual White 7th moves and lines with 7 Nf3.} O-O {[%emt 0:02:02]} 15. Ke2 {[%emt 0:01:27]} Rd8 {[%emt 0:08:52]} 16. Rc4 {[%emt 0:06:13] The position is equal.} Bd7 {[%emt 0:03:49]} 17. Rhc1 {[%emt 0:00:57]} Be8 {[%emt 0:04:30]} 18. h4 {[%emt 0:07:55] [#]} Rd7 $146 {[%emt 0:06:36]} ({Predecessor:} 18... h5 19. e5 Bf8 20. Be4 Rab8 21. Ke1 Nb4 22. Bg5 b5 23. Rc7 Nxa2 24. Ra1 Nb4 25. Bxd8 Rxd8 {0-1 Gatineau,Y (2423)-Demuth,A (2483) FRA-chT 16 Final-A blitz 2021 (1)}) 19. e5 {[%emt 0:07:07]} h6 {[%emt 0:07:22]} 20. Be4 {[%emt 0:08:11]} Rc7 {[%emt 0:05:53]} 21. Nd2 {[%emt 0:21:56]} Rac8 {[%emt 0:06:02]} 22. Bd3 {[%emt 0:04:25]} f5 {[%emt 0:07:08]} 23. exf6 $1 {[%emt 0:07:12]} Bxf6 {[%emt 0:00:07]} 24. Ne4 {[%emt 0:01:10]} (24. Nf3 $5 {[%cal Re3h6]}) 24... Be7 {[%emt 0:00:05]} 25. Kf1 {[%emt 0:03:59]} (25. Bxh6 b5 26. R4c3 Nxd4+ 27. Kf1 Rxc3 28. Rxc3 Rxc3 29. Nxc3 Bxh4 $15) 25... Bf7 {[%emt 0:08:50]} 26. Bxh6 {[%emt 0:05:50]} e5 $1 {[%emt 0:01:02][%mdl 64] Repels Bf4. Discovered Attack} 27. R4c2 $36 {[%emt 0:00:13][%mdl 2048] Hoping for dxe5. White is pushing.} ({Of course not} 27. dxe5 Bxc4 28. Rxc4 (28. Bxc4+ Kh7 $17) 28... b5 $17) 27... Rd8 {[%emt 0:03:16]} 28. Ng5 {[%emt 0:04:28]} Rxd4 {[%emt 0:11:02] White now steadily converts the win.} (28... Bxg5 $14 29. Bxg5 Rxd4 30. Bxa6 bxa6) 29. Nxf7 $16 {[%emt 0:02:18]} Kxf7 {[%emt 0:00:23]} 30. Bc4+ {[%emt 0:00:30]} Ke8 {[%emt 0:02:33]} 31. g3 {[%emt 0:01:00]} Ba3 {[%emt 0:02:40]} 32. Re1 {[%emt 0:00:24]} Bb4 {[%emt 0:03:31]} 33. Rb1 {[%emt 0:01:34]} Rdd7 {[%emt 0:02:33]} 34. Be6 {[%emt 0:02:47]} Rd6 {[%emt 0:01:03]} 35. Bg4 {[%emt 0:00:50] Black must now prevent Rxb4. White is more active.} a5 {[%emt 0:00:16]} 36. Rb3 {[%emt 0:01:57]} Rf7 {[%emt 0:03:01]} 37. Kg2 {[%emt 0:07:35]} Nd4 {[%emt 0:03:51]} 38. Rc8+ {[%emt 0:00:06]} Rd8 {[%emt 0:00:04]} 39. Rxd8+ {[%emt 0:00:04]} Kxd8 {[%emt 0:00:04]} 40. Re3 {[%emt 0:00:10]} Bd6 {[%emt 0:03:24] [#]} (40... Nc6 $142 41. Bg5+ Kc7) 41. Bg5+ $1 $18 {[%emt 0:00:08]} Kc7 {[%emt 0:00:05] [#]} 42. Rc3+ $1 {[%emt 0:00:14]} Nc6 {[%emt 0:01:41]} 43. Bf3 {[%emt 0:00:39]} Bb4 {[%emt 0:00:28]} 44. Rc2 {[%emt 0:00:38]} Rd7 {[%emt 0:00:35]} (44... Be7 $142 45. Bd5 Rg7) 45. Be4 {[%emt 0:00:16]} Rd6 {[%emt 0:00:06]} 46. g4 {[%emt 0:01:47]} Kd7 {[%emt 0:00:35]} 47. h5 {[%emt 0:00:43]} gxh5 {[%emt 0:00:37]} 48. gxh5 {[%emt 0:00:05]} Nd4 {[%emt 0:00:17] [#]} (48... Rd4 $142) 49. h6 $1 {[%emt 0:00:50]} Re6 {[%emt 0:01:02]} (49... Rxh6 50. Bxh6) 50. h7 {[%emt 0:03:37]} Re8 {[%emt 0:00:01]} 51. Bg6 {[%emt 0:00:33] This pair of bishops is nice.} Rb8 {[%emt 0:00:46]} 52. Rc1 {[%emt 0:00:52]} Be7 {[%emt 0:00:20] [#]} 53. Rc7+ $3 {[%emt 0:00:57][%mdl 576] Deflection, Promotion} Kxc7 {[%emt 0:00:01]} 54. Bxe7 {[%emt 0:00:02][%mdl 4096] Endgame KRN-KB} Ne6 {[%emt 0:01:13]} 55. Be4 {[%emt 0:00:42]} b5 {[%emt 0:00:38]} 56. Bf6 {[%emt 0:00:51]} Kd6 {[%emt 0:00:00]} 57. h8=Q {[%emt 0:00:31]} ({Weaker is} 57. h8=B Rg8+ 58. Kf1 Ng5 59. Bxe5+ Ke6 $16) 57... Rxh8 {[%emt 0:00:04]} 58. Bxh8 {[%emt 0:00:03]} b4 {[%emt 0:00:40]} 59. Bc2 {[%emt 0:00:22]} Nd4 {[%emt 0:00:31]} 60. Bd3 {[%emt 0:01:00][%cal Of2f4] And now f4! would win.} a4 {[%emt 0:00:18] [#]} (60... Kd5 $142 61. f3 Ne6 62. Be4+ Kd4) 61. f4 $1 {[%emt 0:00:31] White is clearly winning.} Nc6 {[%emt 0:00:11]} (61... b3 62. Bxe5+) 62. Bb5 {[%emt 0:00:28] Intending Bxc6 and mate.} exf4 {[%emt 0:01:45]} 63. Bxa4 {[%emt 0:00:06]} Kc5 {[%emt 0:00:20]} 64. Kf3 {[%emt 0:00:13]} Na5 {[%emt 0:00:30]} 65. Bb3 {[%emt 0:00:32] Excellently played by Ghazarian!   Weighted Error Value: White=0.14 (very precise) /Black=0.26 (precise)} 1-0

[Event "SixDays Budapest January-GM 2023"]
[Site "Budapest"]
[Date "2023.01.23"]
[Round "1.5"]
[White "Kozak, Adam"]
[Black "Lucas, Arthur"]
[Result "1/2-1/2"]
[ECO "E94"]
[WhiteElo "2558"]
[BlackElo "2412"]
[Annotator "TA"]
[PlyCount "185"]
[EventDate "2023.01.23"]
[EventType "tourn"]
[EventCountry "HUN"]
[SourceTitle "playchess.com"]
[Source "ChessBase"]
[SourceQuality "1"]
[TimeControl "5400+30"]

{[%evp 19,185,32,93,86,77,75,86,87,98,95,93,97,99,95,107,30,16,44,38,28,98,107,106,102,163,89,130,131,128,129,135,137,154,87,100,91,97,95,94,89,69,16,41,41,41,34,61,5,53,0,0,0,0,0,0,0,22,2,2,5,5,5,5,0,0,0,5,5,27,13,13,13,13,13,16,16,16,16,16,16,16,13,13,13,16,5,16,16,16,5,13,0,16,0,0,0,16,0,0,0,8,5,8,0,13,8,12,0,13,0,13,13,13,12,13,20,20,12,27,20,20,20,20,23,24,24,24,20,20,20,28,28,28,28,28,24,24,24,24,24,24,24,28,28,28,28,28,28,28,28,28,24,28,28,28,28,28,24,24,24,24,24,24,24,24,24,24,0]} 1. d4 {[%emt 0:00:04]} Nf6 {[%emt 0:02:47]} 2. c4 {[%emt 0:00:09]} g6 {[%emt 0:00:04]} 3. Nc3 {[%emt 0:00:16]} Bg7 {[%emt 0:00:05]} 4. e4 {[%emt 0:00:16]} d6 {[%emt 0:00:05]} 5. Nf3 {[%emt 0:00:13]} O-O {[%emt 0:00:08]} 6. Be2 {[%emt 0:00:07]} e5 {[%emt 0:00:52]} 7. O-O {[%emt 0:00:22]} exd4 {[%emt 0:00:26]} 8. Nxd4 {[%emt 0:00:12]} Re8 {[%emt 0:00:08]} 9. f3 {[%emt 0:00:38]} c6 {[%emt 0:00:17]} 10. Kh1 {[%emt 0:01:44]} d5 {[%emt 0:00:20]} (10... Nfd7 $14) 11. cxd5 $16 {[%emt 0:01:49] E94: King's Indian: Classical: 6 Be2 e5 7 0-0: Various Black 7th moves.} cxd5 {[%emt 0:00:05]} 12. Bg5 {[%emt 0:03:27] aiming for Nxd5.} Nc6 {[%emt 0:00:37] [#]} 13. Bb5 $1 {[%emt 0:31:47] White is more active. White is better.} h6 {[%emt 0:00:31]} 14. Nxc6 {[%emt 0:12:29]} bxc6 {[%emt 0:00:06]} 15. Bxc6 {[%emt 0:00:38]} hxg5 {[%emt 0:00:07]} 16. Bxa8 {[%emt 0:00:18] And now Bc6 would win.} d4 {[%emt 0:00:52] [#]} 17. Bc6 $5 $146 {[%emt 0:03:01][%mdl 8] An interesting novelty.} (17. Ne2 $1 $16) ({Predecessor:} 17. Nd5 Ba6 18. Bc6 Re6 19. Rc1 Bxf1 20. Qxf1 g4 21. Nf4 Re7 22. Nd3 gxf3 23. Qxf3 {½-½ Ding,L (2791)-Carlsen,M (2863) Chessable Masters Final rapid 2020 (2.14)}) 17... dxc3 $11 {[%emt 0:08:10]} 18. Bxe8 {[%emt 0:00:09]} Qxe8 {[%emt 0:00:10]} 19. bxc3 {[%emt 0:00:08] White wants to play Qd4.} (19. Rb1 $5 {[%cal Rb2c3]}) 19... Ba6 {[%emt 0:17:51]} (19... g4 $11 {remains equal.}) 20. Re1 $16 {[%emt 0:01:46] Threatens to win with e5.} Nh5 {[%emt 0:03:25]} 21. Qd6 {[%emt 0:05:05]} Bc4 {[%emt 0:06:29]} (21... Qa4 $16) 22. Rad1 {[%emt 0:04:33]} (22. Qc5 $18 Qe6 23. Red1 (23. Qxa7 Bxc3 24. Qc7 Bxa1 $11)) 22... Bxa2 {[%emt 0:07:03]} 23. Qd8 {[%emt 0:10:57]} Qxd8 {[%emt 0:00:08]} 24. Rxd8+ {[%emt 0:00:04]} Kh7 {[%emt 0:00:24]} 25. Rc1 {[%emt 0:04:57] Hoping for c4.} Bc4 {[%emt 0:07:19]} 26. Rc8 {[%emt 0:06:30] Inhibits Nf4.} (26. g3 $142) 26... Be6 {[%emt 0:00:05]} 27. Rc7 {[%emt 0:00:14]} Nf4 {[%emt 0:02:30]} 28. Ra1 {[%emt 0:00:23]} Ne2 {[%emt 0:05:45]} 29. Ra3 {[%emt 0:08:10]} g4 {[%emt 0:07:46]} 30. Raxa7 {[%emt 0:04:28]} (30. fxg4 $14 Be5 31. Raxa7 (31. Rcxa7 Nxc3 32. R7a5 Bd4 $16)) 30... Nxc3 {[%emt 0:04:23]} 31. Rxf7 {[%emt 0:00:12]} Bxf7 {[%emt 0:00:05]} 32. Rxf7 {[%emt 0:00:02]} g5 {[%emt 0:04:44]} 33. Re7 {[%emt 0:01:18]} (33. fxg4 $14 Kg6 34. Rf5) 33... Kg6 {[%emt 0:01:03]} (33... gxf3 $1 $11 34. gxf3 Ne2) 34. Kg1 {[%emt 0:00:33]} ({White should try} 34. fxg4 $14 Kf6 35. Re8) 34... gxf3 $11 {[%emt 0:02:47]} 35. gxf3 {[%emt 0:00:02]} Ne2+ {[%emt 0:00:12]} 36. Kf2 {[%emt 0:00:51]} Nf4 {[%emt 0:00:19]} 37. Kg3 {[%emt 0:00:13]} Nh5+ {[%emt 0:10:27]} 38. Kh3 {[%emt 0:00:04]} (38. Kg4 $5 {[%cal Re4e5]} Nf6+ 39. Kh3 $16) 38... Bd4 {[%emt 0:01:59]} 39. Re6+ {[%emt 0:00:45]} Kf7 {[%emt 0:00:32]} 40. Ra6 {[%emt 0:00:42]} Nf6 {[%emt 0:01:14]} 41. Ra5 {[%emt 0:00:50]} Be3 {[%emt 0:00:24]} 42. Rf5 {[%emt 0:00:31] Black must now prevent e5.} Ke6 {[%emt 0:00:44]} 43. Kg2 {[%emt 0:00:06]} Nh5 {[%emt 0:03:32]} 44. Ra5 {[%emt 0:00:48]} Nf4+ {[%emt 0:01:31]} 45. Kg3 {[%emt 0:00:32]} Nh5+ {[%emt 0:00:08]} 46. Kh3 {[%emt 0:00:17]} Bd2 {[%emt 0:01:41]} 47. Ra6+ {[%emt 0:00:43]} Ke5 {[%emt 0:00:14]} 48. Ra2 {[%emt 0:00:21]} Be3 {[%emt 0:02:08]} 49. Ra8 {[%emt 0:00:40]} Nf6 {[%emt 0:00:51]} 50. Ra5+ {[%emt 0:00:29]} Ke6 {[%emt 0:00:07]} 51. Kg2 {[%emt 0:00:08]} Bd2 {[%emt 0:00:43]} 52. Rb5 {[%emt 0:00:56]} Be3 {[%emt 0:00:40]} 53. Rb3 {[%emt 0:00:10]} Bd2 {[%emt 0:00:15]} 54. Ra3 {[%emt 0:00:03]} Ke5 {[%emt 0:00:40]} 55. Rb3 {[%emt 0:00:54]} Ke6 {[%emt 0:01:07]} 56. Kf2 {[%emt 0:00:49]} Bf4 {[%emt 0:00:28]} 57. Rb6+ {[%emt 0:00:13]} Ke5 {[%emt 0:00:13]} 58. Rb5+ {[%emt 0:00:20]} Ke6 {[%emt 0:00:05]} 59. Rf5 {[%emt 0:00:22][%cal Oh2h4] Strongly threatening h4!} Bc1 {[%emt 0:01:29]} 60. Kg3 {[%emt 0:00:16]} Bd2 {[%emt 0:00:24]} 61. Kf2 {[%emt 0:01:16]} Bc1 {[%emt 0:00:35]} 62. Rc5 {[%emt 0:00:33]} Bf4 {[%emt 0:00:13]} 63. Rc6+ {[%emt 0:00:30]} Ke5 {[%emt 0:00:04]} 64. Kg2 {[%emt 0:00:09]} Bd2 {[%emt 0:00:29]} 65. Rc7 {[%emt 0:00:08]} Ke6 {[%emt 0:00:28]} 66. Ra7 {[%emt 0:00:53]} Be3 {[%emt 0:00:42]} 67. Ra8 {[%emt 0:00:04]} Bd2 {[%emt 0:00:26]} 68. Rh8 {[%emt 0:00:06]} Kf7 {[%emt 0:01:04]} 69. h4 {[%emt 0:01:25][%cal Bh2h4,Bh4h5][%mdl 32]} g4 {[%emt 0:00:41]} 70. Rb8 {[%emt 0:00:50]} Be1 {[%emt 0:00:31]} 71. fxg4 {[%emt 0:00:30]} Nxg4 {[%emt 0:00:14]} 72. h5 {[%emt 0:00:29]} Nf6 {[%emt 0:00:46][%csl LRe4,LRh5]} 73. Rb7+ {[%emt 0:00:30]} Kg8 {[%emt 0:00:31]} 74. Rb5 {[%emt 0:00:27]} (74. h6 {seems wilder.} Bd2 75. e5 Nh5 76. h7+) 74... Nxe4 {[%emt 0:00:30]} 75. Re5 {[%emt 0:00:03] White has an edge.} Nf6 {[%emt 0:00:08]} 76. Rxe1 {[%emt 0:00:09]} Nxh5 {[%emt 0:00:04][%mdl 4096] Endgame KR-KN} 77. Kf3 {[%emt 0:00:04]} Kf7 {[%emt 0:00:18]} 78. Kg4 {[%emt 0:00:04]} Ng7 {[%emt 0:00:23]} 79. Kg5 {[%emt 0:00:06]} Ne6+ {[%emt 0:00:19]} 80. Kf5 {[%emt 0:00:01]} Ng7+ {[%emt 0:00:12]} 81. Ke5 {[%emt 0:00:02]} Kg6 {[%emt 0:00:52]} 82. Rf1 {[%emt 0:00:52]} Nh5 {[%emt 0:00:35]} 83. Rh1 {[%emt 0:00:31]} Ng7 {[%emt 0:00:21]} 84. Rb1 {[%emt 0:00:10]} Nh5 {[%emt 0:00:27]} 85. Rb6+ {[%emt 0:00:30]} Kf7 {[%emt 0:01:02]} 86. Rh6 {[%emt 0:00:31]} Ng7 $1 {[%emt 0:00:05]} 87. Rf6+ {[%emt 0:00:28]} Ke7 {[%emt 0:00:20]} 88. Rf1 {[%emt 0:00:14]} Ne6 {[%emt 0:00:53]} 89. Ra1 {[%emt 0:00:01] Intending Ra7+ and mate.} Nc7 {[%emt 0:00:20]} 90. Rh1 {[%emt 0:00:02]} Kd7 {[%emt 0:00:22]} 91. Rh6 {[%emt 0:00:12]} Ne8 {[%emt 0:00:36]} 92. Rg6 {[%emt 0:01:09]} Nc7 {[%emt 0:00:15]} 93. Rh6 {[%emt 0:00:44] Weighted Error Value: White=0.13 (very precise) /Black=0.11 (very precise)} 1/2-1/2